Cogmind - Beta 13 @@@ ROGUE MODE // 2024.04.24 @ 15:50:33 Player: e.v.o Result: Self-destructed Performance ------------- Evolutions (1) 500 Regions Visited (2) 400 Robots Destroyed (21) 105 Value Destroyed (502) 502 Prototype IDs (2) 40 Alien Tech Used (0) 0 Bonus (0) 0 TOTAL SCORE: 1547 Bonus ------- None Cogmind --------- Core Integrity 354/400 Matter 256/300 Energy 240/240 System Corruption 0% Temperature Cool (0) Movement Flying (275) Ox3 Location -9/Materials Parts ------- > --- POWER (1) -------- Nuclear Core > --- PROPULSION (4) --- VTOL Module > --- UTILITY (2) ------ Visual Processing Unit Improved Targeting Computer > --- WEAPON (2) ------- Shock Rifle Improved Medium Laser > --- INVENTORY (5) ---- Nuclear Core Shock Rifle Assault Rifle Peak State ------------ > --- POWER ------------ Nuclear Core > --- PROPULSION ------- Flight Unit Flight Unit Flight Unit VTOL Module > --- UTILITY ---------- Visual Processing Unit Improved Targeting Computer > --- WEAPON ----------- Shock Rifle Improved Medium Laser > --- INVENTORY -------- Nuclear Core Nuclear Core Shock Rifle Assault Rifle Assault Rifle [Rating: 19] Favorites ----------- Power Reinforced Ion Engine Engine Reinforced Ion Engine Power Core Nuclear Core Propulsion Light Treads Treads Light Treads Flight Unit Flight Unit Utility Medium Storage Unit Storage Medium Storage Unit Processor Improved Targeting Computer Weapon Assault Rifle Energy Gun Shock Rifle Ballistic Gun Assault Rifle Launcher Grenade Launcher Build | -11 -10 -9 ------- Run | Yrd Mat Mat Slots Evolved 2 | . . 2 Power . | . . . Propulsion 2 | . . 2 Utility . | . . . Weapon . | . . . Parts Attached 28 | 6 7 15 Power 7 | 1 2 4 Engine 4 | 1 2 1 Core 3 | . . 3 Reactor . | . . . Propulsion 7 | 2 1 4 Treads 3 | 2 1 . Leg . | . . . Wheel . | . . . Hover . | . . . Flight 4 | . . 4 Utility 5 | 1 2 2 Device . | . . . Storage 3 | 1 2 . Processor 2 | . . 2 Hackware . | . . . Protection . | . . . Artifact . | . . . Weapon 9 | 2 2 5 Energy Gun 4 | . . 4 Energy Cannon . | . . . Ballistic Gun 4 | 2 1 1 Ballistic Cannon . | . . . Launcher 1 | . 1 . Special Weapon . | . . . Impact Weapon . | . . . Slashing Weapon . | . . . Piercing Weapon . | . . . Special Melee Weapon . | . . . Unidentified Prototypes . | . . . Parts Lost 3 | . . 3 Power . | . . . Propulsion 3 | . . 3 Utility . | . . . Weapon . | . . . Highest Loss Streak 3 | . . 3 To Critical Strikes . | . . . Average Slot Usage (%) 96 | . 97 91 Engine 11 | . 14 3 Core 1 | . . 7 Treads 23 | . 28 5 Flight 6 | . . 33 Storage 20 | . 25 . Processor 3 | . . 19 Energy Gun 2 | . . 12 Ballistic Gun 13 | . 14 9 Launcher 10 | . 13 . Naked Turns . | . . . Heaviest Build 105 | 11 105 25 Greatest Support 40 | 40 40 40 Greatest Overweight (x) 3 | . 2 3 Average Overweight (x) . | . 1 . Largest Inventory Capacity 25 | 8 25 10 Average Capacity 16 | 6 20 5 Most Carried 14 | 4 14 10 Average Carried 8 | 2 10 4 Final Capacity 25 | 8 25 5 Final Carried 14 | 4 14 3 Class Distribution -------------------- 96% | Mutant 3% | Sprinter Dominant Class ---------------- Mutant | -10/Materials Mutant | -9/Materials Resources | -11 -10 -9 ----------- Run | Yrd Mat Mat Matter Collected 629 | 240 225 164 Remotely . | . . . Salvage Created 538 | . 278 260 Parts 39 | . 23 16 Haulers Intercepted 1 | . 1 . Recyclers Shooed 1 | . 1 . Parts Field Recycled . | . . . Retrieved Matter . | . . . Parts Self-Destructed . | . . . Prevented . | . . . Kills | -11 -10 -9 ------- Run | Yrd Mat Mat Combat Hostiles Destroyed 18 | . 11 7 Guns 12 | . 6 6 AOE 6 | . 5 1 Classes Destroyed 6 | . 5 1 Worker 1 | . 1 . Hauler 1 | . 1 . Watcher 1 | . 1 . Swarmer 9 | . 6 3 Grunt 5 | . 5 . Sentry 4 | . . 4 Best Kill Streak 5 | . 5 4 Combat Bots Only 4 | . 3 4 Max Kills in Single Turn 4 | . 4 2 Gunslinging 1 | . . 1 Exploded 3 | . 3 1 Melee . | . . . Uniques/NPCs Destroyed . | . . . Combat | -11 -10 -9 -------- Run | Yrd Mat Mat Hostile Shots Fired 96 | . 43 53 Missed 32 | . 12 20 Damage Taken 895 | . 431 464 Core 118 | . 72 46 Absorbed by Shields . | . . . Core Remaining (%) 85 | 100 71 . Volleys Fired 53 | . 35 18 Largest 2 | . 2 2 Hottest 106 | . 50 106 Shots Fired 78 | . 42 36 Gun 71 | . 35 36 Cannon . | . . . Launcher 7 | . 7 . Special . | . . . Kinetic 46 | . 35 11 Thermal 7 | . . 7 Explosive 7 | . 7 . Electromagnetic 18 | . . 18 Robot Hit Streak 8 | . 6 8 Robot Miss Streak 3 | . 3 3 Penetration Max . | . . . Secondary Targets 1 | . . 1 Max Gunslinging Chain 1 | . . 1 Shots Hit Robots 51 | . 27 24 Core Hits 32 | . 22 10 Critical Kills . | . . . Critical Parts Destroyed . | . . . Critical Strikes . | . . . Melee Attacks . | . . . Impact . | . . . Slashing . | . . . Piercing . | . . . Sneak Attacks . | . . . Combat Hostiles . | . . . Follow-up Attacks . | . . . Damage Inflicted 1190 | . 751 439 Guns 671 | . 326 345 Cannons . | . . . Explosions 519 | . 425 94 Melee . | . . . Ramming . | . . . Kinetic 437 | . 326 111 Thermal 162 | . . 162 Explosive 425 | . 425 . Electromagnetic 166 | . . 166 Impact . | . . . Slashing . | . . . Piercing . | . . . Highest Corruption . | . . . Average Corruption . | . . . Corruption Purged . | . . . Corruption Blocked . | . . . Overload Shots . | . . . Overflow Damage 2 | . 2 . Projectiles . | . . . Explosions 2 | . 2 . Melee . | . . . Knockbacks . | . . . Impact . | . . . Kinetic . | . . . Secondary . | . . . Self-Inflicted Damage 55 | . 55 . Shots 3 | . 3 . Rammed . | . . . Targets Rammed . | . . . Kicked . | . . . Crushed . | . . . Highest Temperature 511 | . 24 511 Average Temperature 162 | . 11 181 Received Heat Transfer 363 | . 183 180 Effects 9 | . . 9 Shutdowns 3 | . . 3 Energy Bleed 2 | . . 2 Short Circuit 1 | . . 1 Damage (major) 3 | . . 3 Siege Activations . | . . . Robots Corrupted . | . . . Combat Hostiles . | . . . Parts Fried . | . . . Impact Corruptions . | . . . Robots Melted . | . . . Combat Hostiles . | . . . Parts Melted . | . . . Heat Transferred 248 | . . 248 Parts Sabotaged . | . . . Parts Stolen . | . . . Parts Stripped . | . . . Power Chain Reactions 1 | . . 1 Alert | -11 -10 -9 ------- Run | Yrd Mat Mat Peak Influence 280 | . 275 280 Initial 10 | . . 10 Average 113 | . 132 89 Maximum Alert Level 1 | . 1 1 Low Security (%) 84 | 100 84 76 Level 1 15 | . 15 23 Level 2 . | . . . Level 3 . | . . . Level 4 . | . . . Level 5 . | . . . High Security . | . . . Max Security . | . . . Squads Dispatched . | . . . Investigation . | . . . Extermination . | . . . Reinforcement . | . . . Assault . | . . . Garrison . | . . . Intercept . | . . . Searches Triggered . | . . . Construction Impeded . | . . . Haulers Reinforced . | . . . Active Scanning Responses . | . . . Cargo Convoy Interrupts . | . . . Stealth | -11 -10 -9 --------- Run | Yrd Mat Mat Distress Signals 2 | . 2 . Communications Jammed . | . . . Distress Signals . | . . . Times Spotted 27 | . 17 10 Peak Tracking Total 8 | . 4 8 Tactical Retreats 3 | . . 3 Traps | -11 -10 -9 ------- Run | Yrd Mat Mat Traps Triggered . | . . . Indirectly . | . . . Trap Hack Attempts . | . . . Triggered . | . . . Disarmed . | . . . Reprogrammed . | . . . Reused . | . . . Traps Extracted . | . . . Installed . | . . . Triggered . | . . . Machines | -11 -10 -9 ---------- Run | Yrd Mat Mat Machines Disabled 3 | . 3 . Max in Single Turn 2 | . 2 . Machines Repaired . | . . . Machines Dismantled . | . . . Machines Sabotaged . | . . . Overloaded Fab Kills . | . . . Hacking | -11 -10 -9 --------- Run | Yrd Mat Mat Machines Accessed 5 | . 4 1 Terminals 4 | . 4 . Fabricators . | . . . Repair Stations . | . . . Recycling Units . | . . . Scanalyzers 1 | . . 1 Garrison Access . | . . . Total Hacks 8 | . 6 2 Successful 6 | . 4 2 Failed 2 | . 2 . Catastrophic . | . . . Database Lockouts . | . . . Manual . | . . . Terminals 6 | . 6 . Fabricators . | . . . Repair Stations . | . . . Recycling Units . | . . . Scanalyzers 2 | . . 2 Garrison Access . | . . . Terminal Hacks 4 | . 4 . Prototype ID Bank 1 | . 1 . Terminal Index 1 | . 1 . Transport Status 1 | . 1 . Zone Layout 1 | . 1 . Fabricator Hacks . | . . . Repair Station Hacks . | . . . Recycling Unit Hacks . | . . . Scanalyzer 2 | . . 2 Insert Component 1 | . . 1 Analyze 1 | . . 1 Garrison Access Hacks . | . . . Unauthorized Hacks . | . . . Terminals . | . . . Fabricators . | . . . Repair Stations . | . . . Recycling Units . | . . . Scanalyzers . | . . . Garrison Access . | . . . Data Cores Recovered . | . . . Used . | . . . Hacking Detections 3 | . 3 . Full Trace Events . | . . . Feedback Events . | . . . Feedback Blocked . | . . . Robot Schematics Acquired . | . . . Robots Built . | . . . Authchips . | . . . Time . | . . . Total Robot Build Rating . | . . . Part Schematics Acquired 1 | . . 1 Parts Built . | . . . Authchips . | . . . Time . | . . . Total Part Build Rating . | . . . Parts Repaired . | . . . Time . | . . . Parts Recycled . | . . . Recycled Matter . | . . . Retrieved Matter . | . . . Retrieved Components . | . . . Parts Scanalyzed 1 | . . 1 Part Schematics Acquired 1 | . . 1 Parts Damaged . | . . . Bothacking | -11 -10 -9 ------------ Run | Yrd Mat Mat Used RIF Installer . | . . . Robots Hacked . | . . . Non-combat . | . . . Combat . | . . . Robot Hacks Applied . | . . . Relay Couplers Released . | . . . Fabnet Peak Effective % . | . . . Robots Rewired . | . . . Allies Hacked . | . . . Hacks Repelled . | . . . Allies | -11 -10 -9 -------- Run | Yrd Mat Mat Total Allies . | . . . Largest Group . | . . . Highest-Rated Group . | . . . Highest-Rated Ally . | . . . Total Orders . | . . . Ally Attacks . | . . . Total Damage . | . . . Kills . | . . . Allies Corrupted . | . . . Allies Melted . | . . . Intel | -11 -10 -9 ------- Run | Yrd Mat Mat Robot Analysis Total . | . . . Derelict Logs Recovered . | . . . Drone Launches . | . . . Drone Recoveries . | . . . Exploration | -11 -10 -9 ------------- Run | Yrd Mat Mat Turns Passed 1173 | 95 855 223 Spaces Moved 561 | 55 299 207 Core 4 | 4 . . Treads 351 | 51 299 1 Legs . | . . . Wheels . | . . . Hover . | . . . Flight 206 | . . 206 Fastest Speed 29 | 50 160 29 Average Speed 170 | 152 253 54 Slowest Speed 320 | 160 320 275 Overloaded Moves . | . . . Propulsion Burnouts . | . . . Robots Hopped 1 | . . 1 Cave-ins Triggered . | . . . Exploration Rate (%) 27 | 4 62 17 Regions Visited 2 Branch Regions . Pre-discovered Areas . | . . . Known Exits Taken . | . . . Unknown Exits Taken 2 | 1 1 . Scrap Searched . | . . . Spaces Dug . | . . . Terrain Destroyed 47 | . 42 5 Melee . | . . . Projectile . | . . . AOE 47 | . 42 5 Terrain Rammed . | . . . Walls Destroyed . | . . . Machines Disabled . | . . . Actions | -11 -10 -9 --------- Run | Yrd Mat Mat Total 702 | 64 355 283 Wait 16 | . . 16 Move 557 | 54 298 205 Hop 1 | . . 1 Pick Up 23 | 4 10 9 Fast Attach 11 | 6 1 4 Attach 3 | . . 3 Detach . | . . . Swap 14 | . 6 8 Drop 24 | . 5 19 Fire 53 | . 35 18 Melee . | . . . Ram . | . . . Kick . | . . . Crush . | . . . Escape Stasis . | . . . Rewire . | . . . Trap . | . . . Miscellaneous . | . . . Route ------- -11/Scrapyard -10/Materials (discovered 3 exits: *Mat x2 / [*Min]) -9/Materials History --------- Turn | Location | Event 14 | -11/Scrapyard | Discovered new exit (range 16) 96 | -11/Scrapyard | Entered Materials 316 | -10/Materials | Build established: Mutant 385 | -10/Materials | Discovered new exit (range 15) 397 | -10/Materials | Discovered new exit (range 15) 529 | -10/Materials | Discovered new exit (range 3) 951 | -10/Materials | Entered another Materials area 951 | -9/Materials | Evolved 2 slots: Propulsion x2 1171 | -9/Materials | Lost 3 parts (3n) 1174 | -9/Materials | Self-destructed Last Messages --------------- 01144_ Y-45 Defender destroyed. 01147_ Y-45 Defender shuts down. 01147_ Y-45 Defender destroyed. 01149_ Overheating: Energy bleed (-17). 01150_ Overheating: Shock Rifle damaged (-6). 01150_ Overheating: Imp. Medium Laser damaged (-15). 01150_ Overheating: VTOL Module damaged (-4). 01152_ Dropped Nuclear Core. 01152_ Dropped Assault Rifle. 01153_ Power failure, Nuclear Core shutdown. 01153_ K-01 Serf collects debris. 01157_ Visual Processing Unit broken. 01157_ Overheating: Short circuit. 01157_ K-01 Serf collects debris. 01160_ Acquired 60 matter. 01164_ R-06 Scavenger collects Hvy. Assault Rifle. 01168_ R-06 Scavenger collects Beam Rifle. 01171_ R-06 Scavenger collects Heat Sink. Map ----- +----------------------------------------------------+ | ???????????????????????????# #???????????????? | | ???????????????????????????# #########???????? | | ?????????????????########### + #???????? | | ?????????????????? # # ##### #???????? | | ???????????????????? #= # #???# #???????? | | ?????????????????????? # + #???# #???????? | | ???????????????????????# ####### #???# #???????? | | ???????????????????????# ! ####### #???# #???????? | | ???????????????????????" % #???# #???????? | | ???????????????????????"%"##########???# #???????? | | ???????????????????????"["?????????????# #???????? | | ???????????????????????# #?????????????# #???????? | | ???????????????????????# #?????????????# #???????? | | ???????????????????????# #?????#####???# #???????? | | ???????????????????????# #?????# ??# #???????? | | ???????????????????????# #?????# """??# #???????? | | ???????????????????????# #?????# """ ## ##??????? | | ???????????????????????# #?????# """ # #??????? | | ???????????????????????#[#?????# + #??????? | | ???????????????????????#*#?????# # #??????? | | ???????????????????????#*#??############ ##??????? | | ???????????????????????#!#?"T" #???# #####???? | | ???????????????????##### #? [ #???# * #???? | | ????????? ####### r # ! #???# **#???? | | ????????? k # #???# ] #???? | | ??????? @ """ ""??????# ]]#???? | | ???????? r # """ ""??????# [[#???? | | ????????###+######## # """ ""??????# ] [#???? | | ???????????????????### ###? ??????# #####???? | | ?????????????????????# ????## ###??????# #???????? | | ?????????????????????# ??????##????????# #???????? | | ?????????????????????# ????############# ####????? | | ????????????????????? ? #????? | | ?????????????????????# ? #????? | | ?????????????????????#?? #????? | | ????????????????????????? #????? | | ????????????????????????? #####+#####? | | ??????????????????????????#+####### ?# #? | | ?????????????????????????????????## ?# """ #? | | ?????????????????????????????????# ??# """ #? | | ????????????????????????????????## # """ #? | | ????????????????????????????????+ + ## | | ????????????????????????????????## # + | | ?????????????????????????????????# ??# "" ## | | ?????????????????????????????????##????# S"" ## | | ???????????????????????????????????????# "" ## | | ???????????????????????????????????????#####+##+## | | ????????????????????????????????????????????????? | | ???????????????????????????????????????????????? | | ??????????????????????????????????????????????? | +----------------------------------------------------+ Best States ------------- Heat Dissipation 28 Energy Generation 14 Energy Capacity 265 Matter Stores 300 Matter Capacity 300 Sight Range 18 Terrain Scan Density 10 Evasion (%) 64 Targeting Accuracy 6 Recoil Reduction 2 Item Schematics ----------------- Rnf. Ion Engine | -9/Materials | Scanalyzed Robot Schematics ------------------ None Fabricated ------------ Nothing Alien Tech Used ----------------- None Achievements -------------- None Challenges ------------ None Game ------ Seed ConcussiveMeleeRegenerator Manual? 0 Play Time 00:12:36 Cumulative 41.0 hours Start 2024.04.24 @ 13:11:38 End 2024.04.24 @ 15:50:33 Sessions 2 Manual Loads 0 Difficulty Rogue Special Mode None Game No. 66 Rogue 50 Adventurer 16 Explorer 0 Win Type - Total 0 Types 0/0/0/0/0/0/0/0/0 Lore% 14 Gallery% 32 Achievement% 23 Wizard Run 0 Options --------- Layout 2 ASCII 0 Keyboard 0 Movement Mouse Keybinds 0 Fullscreen 2 Font 24/Smallcaps Map View 50x44 Zoom Use 0% Tactical HUD 1 Map Filters NONE Filters NONE Steam 1 RUN: ec01d52b-d681-4842-9326-680d005628a9